bitfinex-derivatives/quotes_SOLF0:USTF0_20250624
["timestamp","ask_amount","ask_price","bid_price","bid_amount"]
[1750780274653,4.86370604,144.4,144.33,2.4136]
[1750780274850,5.38326545,144.39,144.33,2.4136]
[1750780275156,5.38326545,144.38,144.34,7.32272839]
[1750780275355,38.98,144.42,144.34,7.32272839]
[1750780275550,5.35030755,144.41,144.35,38.98]
[1750780275747,5.35030755,144.4,144.39,6.9215]
[1750780276051,46.30272839,144.45,144.36,7.32272839]
[1750780276251,10.21501021,144.44,144.36,7.32272839]
[1750780276452,4.86441745,144.43,144.37,2.3667]
[1750780276651,10.22226153,144.42,144.37,2.3667]
[1750780276853,5.35784408,144.41,144.37,2.3667]
[1750780277058,5.35784408,144.4,144.39,6.9216]
[1750780277666,46.30272839,144.45,144.4,6.9211]
[1750780277960,10.22993612,144.44,144.37,2.3667]
[1750780278154,10.22993612,144.43,144.39,6.9216]
[1750780278354,10.22993612,144.42,144.39,6.9216]
[1750780278550,10.22993612,144.41,144.37,2.3667]
[1750780278750,5.35824207,144.4,144.38,6.9224]
[1750780278950,7.32272839,144.43,144.38,6.9224]
[1750780279147,10.22934822,144.42,144.37,6.9227]
[1750780279348,10.22757311,144.41,144.37,6.9227]
[1750780279556,10.22757311,144.4,144.35,38.98]
[1750780279753,10.22757311,144.39,144.36,6.9234]
[1750780280063,10.22757311,144.38,144.33,4.7538]
[1750780280365,5.36399286,144.37,144.35,6.9237]
[1750780280655,10.23349856,144.36,144.31,38.98]
[1750780280862,10.24442547,144.35,144.31,38.98]
[1750780281059,5.36399286,144.34,144.28,4.5892]
[1750780281263,10.24481614,144.33,144.28,4.5892]
[1750780281558,5.36399286,144.32,144.28,4.5892]
[1750780281755,7.32272839,144.35,144.28,4.5892]
[1750780281957,10.25430219,144.34,144.28,4.5892]
[1750780282266,10.25411435,144.33,144.28,4.5892]
[1750780282451,5.37370151,144.32,144.28,4.5892]
[1750780282650,38.98,144.36,144.32,6.9253]
[1750780282856,38.98,144.36,144.28,4.5892]
[1750780282857,10.26924307,144.35,144.28,4.5892]
[1750780283159,10.26924307,144.34,144.33,6.9248]
[1750780283859,10.26924307,144.34,144.28,4.5892]
[1750780284064,5.38125623,144.33,144.28,4.5892]
[1750780284256,5.38125623,144.32,144.31,6.9258]
[1750780284960,46.30272839,144.36,144.33,6.9248]
[1750780285161,10.28822352,144.35,144.33,6.9248]
[1750780285364,5.3905548,144.34,144.33,6.9248]
[1750780285760,5.3905548,144.34,144.32,6.9252]
[1750780286063,53.22622839,144.36,144.28,11.91192839]
[1750780286266,10.28702079,144.35,144.28,11.91192839]
[1750780286567,5.39649669,144.34,144.28,4.5892]
[1750780286962,46.30272839,144.36,144.32,6.9253]
[1750780287160,4.89147905,144.35,144.32,6.9253]
[1750780287360,4.89147905,144.34,144.32,6.9253]
[1750780287569,6.9241,144.35,144.32,6.9253]
[1750780287764,4.8974405,144.34,144.32,6.9253]
[1750780287962,6.9241,144.35,144.32,6.9253]
[1750780288162,4.8974883,144.34,144.32,6.9253]
[1750780288368,6.9241,144.35,144.32,6.9253]
[1750780288563,11.82286404,144.34,144.31,6.9256]
[1750780288770,6.9244,144.34,144.31,6.9256]
[1750780289160,6.9244,144.34,144.3,6.9261]
[1750780289361,6.9249,144.33,144.3,6.9261]
[1750780289966,7.32272839,144.32,144.24,38.98]
[1750780290464,6.9247,144.34,144.25,7.32272839]
[1750780290666,4.90590931,144.33,144.25,7.32272839]
[1750780290971,6.9249,144.33,144.25,7.32272839]
[1750780291171,7.32272839,144.35,144.25,7.32272839]
[1750780291364,4.90912343,144.34,144.25,7.32272839]
[1750780291569,7.32272839,144.35,144.25,7.32272839]
[1750780291874,10.15995964,144.34,144.24,38.98]
[1750780292071,10.15856259,144.33,144.24,7.32272839]
[1750780292371,10.16850526,144.32,144.25,38.98]
[1750780292568,49.71048909,144.35,144.26,7.32272839]
[1750780292773,10.16740276,144.34,144.26,7.32272839]
[1750780292966,4.91262707,144.33,144.26,7.32272839]
[1750780293266,54.12692839,144.35,144.32,6.9253]
[1750780293463,4.91395528,144.34,144.26,21.17922839]
[1750780293663,39.88,144.35,144.28,7.32272839]
[1750780294066,39.88,144.35,144.26,13.8565]
[1750780294265,39.88,144.35,144.27,7.32272839]
[1750780294674,39.88,144.38,144.29,7.32272839]
[1750780294871,10.16344184,144.37,144.33,6.9245]
[1750780295070,10.16344184,144.36,144.33,6.9245]
[1750780295274,6.9232,144.37,144.33,6.9245]
[1750780295477,10.16392218,144.36,144.33,6.9245]
[1750780295670,6.9236,144.36,144.33,6.9245]
[1750780295872,7.32272839,144.37,144.29,39.88]
[1750780296066,10.16415459,144.36,144.29,39.88]
[1750780296269,7.32272839,144.36,144.29,39.88]
[1750780296467,47.20272839,144.38,144.29,39.88]
[1750780296668,10.15912644,144.37,144.29,47.20272839]
[1750780296878,6.9232,144.37,144.34,6.9242]
[1750780297066,47.20272839,144.38,144.3,4.6341]
[1750780297275,39.88,144.38,144.3,4.6341]
[1750780297573,39.88,144.38,144.31,7.32272839]
[1750780298668,4.89535876,144.39,144.37,6.9229]
[1750780298868,2.50153509,144.4,144.37,6.9229]
[1750780299072,46.8014,144.41,144.39,6.9218]
[1750780299073,39.88,144.41,144.39,6.9218]
[1750780299273,39.88,144.41,144.33,47.20272839]
[1750780300173,39.88,144.41,144.39,6.9217]
[1750780300376,39.88,144.41,144.33,47.20272839]
[1750780300679,39.88,144.41,144.34,2.2152]
[1750780302890,39.88,144.41,144.34,2.2152]
[1750780303181,39.88,144.41,144.38,6.9221]
[1750780303577,39.88,144.41,144.33,39.88]
[1750780303982,6.9222,144.39,144.33,39.88]
[1750780304186,7.32272839,144.4,144.33,39.88]
[1750780304587,6.9222,144.39,144.33,39.88]
[1750780304787,7.32272839,144.4,144.33,39.88]
[1750780305078,7.32272839,144.38,144.3,44.4941]
[1750780305670,14.24542839,144.38,144.3,44.4941]
[1750780306077,7.32272839,144.4,144.31,7.32272839]
[1750780306277,6.923,144.37,144.3,44.4941]
[1750780306679,6.923,144.37,144.34,6.924]
[1750780307684,14.24542839,144.38,144.35,6.9238]
[1750780308080,6.923,144.37,144.34,6.9242]
[1750780308276,7.32272839,144.38,144.3,44.5141]
[1750780308481,46.8031,144.37,144.34,6.9241]
[1750780309682,39.88,144.37,144.3,44.5141]
[1750780309885,39.88,144.37,144.3,4.6341]
[1750780310684,6.9237,144.36,144.34,6.9243]
[1750780310989,39.88,144.37,144.3,4.6341]
[1750780311181,39.88,144.4,144.3,11.95682839]
[1750780311488,39.88,144.41,144.32,7.32272839]
[1750780311984,39.88,144.41,144.34,7.32272839]
[1750780312487,39.88,144.41,144.39,6.9219]
[1750780313389,46.8011,144.41,144.38,6.9222]
[1750780313784,39.88,144.41,144.38,6.9222]
[1750780314487,47.20272839,144.41,144.32,7.32272839]
[1750780314886,2.51783689,144.4,144.32,7.32272839]
[1750780315192,6.9221,144.39,144.31,47.20272839]
[1750780315376,2.51808413,144.4,144.31,47.20272839]
[1750780315579,47.20272839,144.41,144.31,47.20272839]
[1750780315580,6.9228,144.38,144.35,6.9239]
[1750780315982,6.9228,144.38,144.31,39.88]
[1750780316274,7.32272839,144.39,144.31,39.88]
[1750780316878,39.88,144.41,144.31,39.88]
[1750780317078,39.88,144.41,144.31,47.20272839]
[1750780317079,15.08076068,144.4,144.31,47.20272839]
[1750780317276,7.32272839,144.4,144.31,47.20272839]
[1750780317990,14.24452839,144.4,144.31,47.20272839]
[1750780318389,7.32272839,144.4,144.31,47.20272839]
[1750780318987,14.24452839,144.4,144.37,6.9226]
[1750780319294,39.88,144.41,144.31,47.20272839]
[1750780319479,39.88,144.41,144.33,7.32272839]
[1750780319680,46.8011,144.41,144.38,6.9222]
[1750780321201,39.88,144.41,144.39,6.9219]
[1750780321691,39.88,144.41,144.4,6.9215]
[1750780322492,12.70067429,144.43,144.35,47.18272839]
[1750780322696,39.86,144.44,144.37,7.32272839]
[1750780322891,46.7799,144.44,144.41,6.9208]
[1750780323388,39.86,144.44,144.43,6.9201]
[1750780323579,39.86,144.44,144.35,39.86]
[1750780323787,39.86,144.44,144.35,47.18272839]
[1750780324798,39.86,144.44,144.37,7.32272839]
[1750780324994,10.17941233,144.45,144.4,7.31449906]
[1750780325188,12.70471932,144.49,144.44,7.31449906]
[1750780325495,6.9165,144.51,144.48,6.9176]
[1750780325684,47.53449906,144.56,144.46,47.53449906]
[1750780325885,12.69277371,144.55,144.46,47.53449906]
[1750780326188,12.69277371,144.54,144.46,47.53449906]
[1750780326388,10.1743008,144.55,144.46,47.53449906]
[1750780326597,11.84525684,144.55,144.51,6.9162]
[1750780326899,5.24558214,144.55,144.48,7.31449906]
[1750780327193,5.24558214,144.55,144.46,40.22]
[1750780327396,50.16424717,144.7,144.49,12.89878864]
[1750780327591,50.16424717,144.7,144.58,7.30317133]
[1750780327788,50.16424717,144.7,144.59,2.3282]
[1750780327994,50.16424717,144.7,144.62,6.9109]
[1750780328190,50.16424717,144.7,144.6,7.30317133]
[1750780328391,50.16424717,144.7,144.62,7.30317133]
[1750780328900,50.16424717,144.7,144.61,46.54]
[1750780328901,5.28424717,144.7,144.61,46.54]
[1750780329400,1.64164717,144.7,144.61,46.54]
[1750780329791,2.416,144.79,144.69,7.28935959]
[1750780329993,2.416,144.79,144.66,52.74]
[1750780330300,2.416,144.79,144.7,7.28935959]
[1750780330512,7.28566065,144.76,144.66,52.74]
[1750780330695,7.28566065,144.76,144.66,7.28843929]
[1750780330696,52.7,144.76,144.66,7.28843929]
[1750780331002,52.7,144.76,144.6,52.7]
[1750780331205,6.906,144.74,144.66,6.9091]
[1750780331506,7.28843929,144.69,144.55,597.44]
[1750780331692,4.7483,144.68,144.53,54.46]
[1750780331896,2.416,144.68,144.53,54.46]
[1750780332599,2.416,144.68,144.54,2.4216]
[1750780332801,9.3247,144.68,144.6,6.9124]
[1750780333104,2.416,144.68,144.54,2.4216]
[1750780333299,7.28843929,144.65,144.59,6.9126]
[1750780333500,66.44843929,144.65,144.59,6.9126]
[1750780333706,59.16,144.65,144.59,6.9126]
[1750780333901,2.416,144.68,144.57,7.28843929]
[1750780334111,7.28843929,144.69,144.59,7.28843929]
[1750780334411,7.28843929,144.69,144.58,7.28843929]
[1750780334708,59.16,144.7,144.58,7.28843929]
[1750780334916,597.44,144.71,144.63,7.28843929]
[1750780335104,2.2505,144.72,144.64,7.28843929]
[1750780335293,2.2505,144.72,144.62,7.28958691]
[1750780335294,9.54008691,144.72,144.62,7.28958691]
[1750780335806,9.54008691,144.72,144.63,2.3253]
[1750780336201,9.1577,144.72,144.66,6.9095]
[1750780336401,9.54008691,144.72,144.64,7.28958691]
[1750780336602,9.54008691,144.72,144.63,2.3253]
[1750780336804,6.9073,144.71,144.65,6.9101]
[1750780337106,9.54008691,144.72,144.63,2.3253]
[1750780337506,16.44718691,144.72,144.67,6.9091]
[1750780337694,59.16,144.73,144.64,7.28958691]
[1750780338210,59.16,144.73,144.65,11.16570634]
[1750780338502,59.16,144.73,144.68,6.9083]
[1750780338899,59.16,144.73,144.65,11.16570634]
[1750780339102,59.16,144.73,144.69,6.9078]
[1750780339306,59.16,144.73,144.63,15.83710634]
[1750780339705,66.0664,144.73,144.63,15.83710634]
[1750780340009,59.16,144.73,144.63,4.6714]
[1750780340213,6.9078,144.7,144.64,6.9102]
[1750780340502,6.9078,144.7,144.63,2.3253]
[1750780340707,11.16570634,144.71,144.63,2.3253]
[1750780340912,59.16,144.73,144.63,2.3253]
[1750780341397,6.9073,144.71,144.66,6.9092]
[1750780341793,59.16,144.73,144.64,6.9106]
[1750780341998,11.16570634,144.7,144.64,6.9106]
[1750780342209,11.16570634,144.71,144.63,2.3253]
[1750780342510,11.17999195,144.68,144.59,2.3534]
[1750780342704,72.23999195,144.68,144.59,2.3534]
[1750780343005,11.18220491,144.66,144.59,2.3534]
[1750780343207,11.18220491,144.66,144.58,2.4005]
[1750780343208,11.18220491,144.66,144.56,2.3121]
[1750780343395,6.9114,144.63,144.58,6.9131]
[1750780343594,11.18220491,144.66,144.56,2.3121]
[1750780344809,4.87720916,144.67,144.56,2.3121]
[1750780345011,658.0,144.68,144.56,2.3121]
[1750780345012,11.18220491,144.66,144.56,2.3121]
[1750780345210,6.911,144.64,144.59,6.913]
[1750780345501,11.18220491,144.66,144.59,6.913]
[1750780345806,11.18220491,144.66,144.56,2.3121]
[1750780346008,11.18220491,144.63,144.54,2.2596]
[1750780346205,61.06,144.62,144.54,2.2596]
[1750780346402,6.9126,144.6,144.56,6.9143]
[1750780346908,6.9122,144.61,144.56,6.9143]
[1750780347103,63.2541,144.62,144.53,61.06]
[1750780347308,70.1657,144.62,144.53,61.06]
[1750780347507,63.2541,144.62,144.59,6.9127]
[1750780347708,61.06,144.62,144.53,61.06]
[1750780348108,61.06,144.62,144.59,6.913]
[1750780348412,61.06,144.62,144.53,61.06]
[1750780348707,72.24220491,144.65,144.53,61.06]
[1750780349102,6.9119,144.62,144.53,61.06]
[1750780349306,72.24220491,144.65,144.58,6.9132]
[1750780349503,6.9115,144.63,144.58,6.9132]
[1750780349704,72.24220491,144.65,144.58,6.9132]
[1750780349910,72.24220491,144.65,144.53,61.06]
[1750780350503,6.9107,144.64,144.6,6.9122]
[1750780350900,72.24220491,144.65,144.6,6.9122]
[1750780351105,6.9115,144.63,144.53,72.24220491]
[1750780351312,72.24220491,144.65,144.53,72.24220491]
[1750780351514,72.24220491,144.65,144.62,6.9112]
[1750780352414,61.06,144.65,144.54,11.18220491]
[1750780353315,61.06,144.65,144.53,61.06]
[1750780353517,61.06,144.65,144.54,11.18220491]
[1750780353919,67.9703,144.65,144.61,6.912]
[1750780355221,6.9107,144.64,144.61,6.912]
[1750780355914,6.9111,144.63,144.6,6.9125]
[1750780356117,61.06,144.65,144.6,6.9125]
[1750780356321,16.05909412,144.64,144.53,61.06]
[1750780356516,4.87688921,144.63,144.53,61.06]
[1750780356713,4.87688921,144.62,144.53,61.06]
[1750780356918,11.18220491,144.64,144.57,6.9137]
[1750780356919,4.87688921,144.61,144.57,6.9137]
[1750780357115,11.18220491,144.61,144.52,6.7879]
[1750780357422,11.7999491,144.6,144.56,6.9141]
[1750780357611,6.9128,144.6,144.52,6.7879]
[1750780357817,4.89491482,144.59,144.52,6.7879]
[1750780358013,6.9128,144.6,144.56,6.9141]
[1750780358217,4.89661103,144.59,144.56,6.9141]
[1750780358418,14.21617943,144.6,144.56,6.9141]
[1750780358620,4.89344373,144.59,144.56,6.9141]
[1750780358820,14.21617943,144.6,144.57,6.9138]
[1750780359021,4.89551329,144.59,144.57,6.9138]
[1750780359228,14.21617943,144.6,144.57,6.9138]
[1750780359432,11.80851625,144.59,144.56,6.9142]
[1750780359630,6.9131,144.59,144.56,6.9142]
[1750780360129,7.30337943,144.6,144.52,6.7879]
[1750780360330,4.91058466,144.59,144.52,6.7879]
[1750780360524,4.91058466,144.58,144.52,6.7879]
[1750780360731,7.30337943,144.6,144.58,6.9133]
[1750780360930,4.90913495,144.59,144.58,6.9133]
[1750780361228,4.90913495,144.59,144.57,6.9137]
[1750780361532,4.90913495,144.58,144.57,6.9137]
[1750780361723,7.30337943,144.6,144.58,6.9133]
[1750780361930,10.02018038,144.59,144.52,6.7879]
[1750780362132,10.02018038,144.58,144.52,6.7879]
[1750780362342,10.02018038,144.57,144.52,6.7879]
[1750780362532,7.30468144,144.55,144.45,82.20338144]
[1750780362733,10.01873651,144.54,144.46,4.5318]
[1750780362936,4.90908573,144.53,144.46,4.5318]
[1750780363137,4.90908573,144.52,144.46,4.5318]
[1750780363329,7.30468144,144.55,144.52,6.9161]
[1750780363535,10.02404759,144.54,144.46,4.5318]
[1750780363736,4.91612327,144.53,144.46,4.5318]
[1750780363926,4.91612327,144.52,144.46,4.5318]
[1750780364131,14.21938144,144.56,144.46,4.5318]
[1750780364331,10.01356424,144.55,144.46,4.5318]
[1750780364532,4.917377,144.54,144.52,6.916]
[1750780364730,4.917377,144.53,144.52,6.916]
[1750780366237,4.917377,144.53,144.46,4.5318]
[1750780366238,7.30468144,144.56,144.54,6.9153]
[1750780366535,9.86121984,144.55,144.46,2.3393]
[1750780366729,9.86121984,144.55,144.44,2.3838]
[1750780366730,7.30468144,144.52,144.44,2.3838]
[1750780366936,4.87665798,144.51,144.44,2.3838]
[1750780367134,4.87665798,144.5,144.44,2.3838]
[1750780367432,14.22038144,144.54,144.44,2.3838]
[1750780367640,4.86342916,144.53,144.44,2.3838]
[1750780367833,7.30468144,144.54,144.51,6.9165]
[1750780368037,4.86160648,144.53,144.51,6.9165]
[1750780368243,4.86160648,144.52,144.44,9.68848144]
[1750780368429,2.252,144.55,144.44,9.68848144]
[1750780368632,4.8615184,144.54,144.44,2.3838]
[1750780368838,12.16619984,144.53,144.48,6.918]
[1750780369142,7.30468144,144.49,144.42,4.8043]
[1750780369635,7.30468144,144.51,144.42,4.8043]
[1750780369843,4.85978017,144.5,144.42,4.8043]
[1750780370139,4.85934518,144.49,144.48,6.9182]
[1750780370345,7.30468144,144.51,144.48,6.9182]
[1750780370537,4.86205613,144.5,144.48,6.9182]
[1750780370732,7.30468144,144.51,144.48,6.9182]
[1750780371038,4.86209476,144.5,144.48,6.9182]
[1750780371239,7.30468144,144.51,144.48,6.9182]
[1750780371430,61.08,144.52,144.43,7.30468144]
[1750780371835,61.08,144.52,144.44,2.407]
[1750780372434,61.08,144.52,144.49,6.9175]
[1750780374036,61.08,144.52,144.5,6.9172]
[1750780374240,61.08,144.52,144.44,2.407]
[1750780374441,67.9964,144.52,144.44,2.407]
[1750780375041,6.9169,144.51,144.44,2.407]
[1750780375442,7.30468144,144.51,144.47,6.9184]
[1750780375649,6.9173,144.5,144.47,6.9184]
[1750780376847,6.9178,144.49,144.47,6.9184]
[1750780377245,7.31344589,144.5,144.42,4.8043]
[1750780377445,63.4371,144.52,144.42,4.8043]
[1750780377742,63.4371,144.52,144.47,6.9183]
[1750780377943,6.9174,144.5,144.42,4.8043]
[1750780378137,6.9174,144.5,144.42,12.11774589]
[1750780378345,7.31344589,144.51,144.42,4.8043]
[1750780378645,6.918,144.49,144.42,4.8043]
[1750780378846,6.918,144.49,144.46,6.9189]
[1750780379238,6.918,144.49,144.42,4.8043]
[1750780380040,6.9184,144.48,144.45,6.9194]
[1750780380349,7.31344589,144.49,144.42,4.8043]
[1750780380545,6.919,144.47,144.44,6.9199]
[1750780380755,7.31344589,144.47,144.39,2.2047]
[1750780380941,6.9206,144.44,144.37,70.89344589]
[1750780381139,7.31344589,144.43,144.34,85.37639663]
[1750780381348,7.31344589,144.43,144.31,12.58642052]
[1750780381349,7.32303319,144.38,144.31,2.3066]
[1750780381545,63.6182,144.42,144.31,2.3066]
[1750780382045,7.32303319,144.4,144.31,2.3066]
[1750780382248,7.32303319,144.38,144.31,2.3066]
[1750780383454,7.32631587,144.38,144.31,2.3066]
[1750780383754,61.22,144.42,144.34,7.32631587]
[1750780384150,6.9197,144.45,144.42,6.9208]
[1750780384339,12.09701587,144.46,144.36,7.32631587]
[1750780384545,2.3725,144.46,144.38,7.32631587]
[1750780384845,2.3725,144.46,144.43,6.9204]
[1750780385039,2.3725,144.46,144.38,7.32631587]
[1750780385245,2.3725,144.46,144.38,11.92881587]
[1750780385945,61.22,144.47,144.4,7.32631587]
[1750780386346,61.22,144.47,144.46,6.9192]
[1750780386546,9.2271,144.49,144.4,7.32631587]
[1750780386547,2.309,144.49,144.4,7.32631587]
[1750780386743,7.31647191,144.48,144.38,14.14867191]
[1750780386942,14.23497191,144.48,144.44,6.9199]
[1750780387459,7.31647191,144.48,144.44,6.9199]
[1750780387653,7.31647191,144.48,144.43,6.9205]
[1750780388155,7.31647191,144.48,144.44,6.9201]
[1750780388757,6.9193,144.46,144.43,6.9204]
[1750780389056,7.31647191,144.48,144.38,14.14867191]
[1750780389255,6.9189,144.47,144.44,6.9199]
[1750780389557,7.31647191,144.48,144.38,14.14867191]
[1750780390355,14.23477191,144.48,144.45,6.9194]
[1750780390552,14.23477191,144.48,144.4,7.31647191]
[1750780390553,7.31647191,144.48,144.4,7.31647191]
[1750780390858,6.919,144.47,144.44,6.9199]
[1750780391155,14.23487191,144.48,144.45,6.9194]
[1750780391554,604.79647191,144.5,144.4,7.31647191]
[1750780392061,604.79647191,144.5,144.38,6.8322]
[1750780392062,65.7527,144.51,144.42,7.31647191]
[1750780392358,65.7527,144.51,144.49,6.9178]
[1750780392359,63.5316,144.51,144.49,6.9178]
[1750780392762,9.53757191,144.55,144.44,7.31647191]
[1750780393056,9.53757191,144.55,144.45,4.6471]
[1750780393263,7.30916293,144.54,144.5,6.917]
[1750780394054,6.9161,144.53,144.5,6.917]
[1750780394864,7.30916293,144.52,144.41,61.24]
[1750780395055,7.30916293,144.52,144.41,73.32116293]
[1750780395359,6.9182,144.49,144.41,73.32116293]
[1750780395561,7.30916293,144.54,144.43,7.30916293]
[1750780396163,7.30916293,144.52,144.43,7.30916293]
[1750780396365,6.917,144.51,144.48,6.9182]
[1750780396662,7.30916293,144.52,144.43,7.30916293]
[1750780396850,6.9169,144.51,144.48,6.9179]
[1750780397765,7.31445657,144.5,144.41,4.772]
[1750780397964,7.31445657,144.48,144.41,4.772]
[1750780398266,6.9194,144.46,144.41,4.772]
[1750780398471,7.31445657,144.46,144.38,2.2297]
[1750780398762,6.9215,144.42,144.38,6.9229]
[1750780398964,7.31445657,144.44,144.35,4.7238]
[1750780399160,7.31445657,144.42,144.35,4.7238]
[1750780399370,7.31445657,144.42,144.37,6.9232]
[1750780399755,7.31445657,144.4,144.34,88.55369172]
[1750780400357,7.31445657,144.4,144.33,59.28]
[1750780400553,7.31445657,144.4,144.3,11.99305657]
[1750780401268,7.31445657,144.4,144.3,4.6786]
[1750780401660,6.923,144.38,144.3,11.99305657]
[1750780402171,7.31445657,144.38,144.3,11.99305657]
[1750780402868,2.2917,144.39,144.3,11.99305657]
[1750780403369,59.28,144.41,144.3,4.6786]
[1750780403573,59.28,144.41,144.34,7.32103322]
[1750780403962,66.62103322,144.45,144.36,7.32103322]
[1750780404666,59.3,144.45,144.36,7.32103322]
[1750780404864,66.2201,144.45,144.42,6.9209]
[1750780405367,59.3,144.45,144.36,9.69613322]
[1750780405570,66.2198,144.45,144.36,9.69613322]
[1750780405760,59.3,144.45,144.36,9.69613322]
[1750780406368,7.32103322,144.44,144.36,2.3751]
[1750780406779,6.9211,144.43,144.36,2.3751]
[1750780407072,7.32103322,144.44,144.36,2.3751]
[1750780407275,6.9217,144.41,144.38,6.9227]
[1750780407979,6.9217,144.41,144.39,6.9225]
[1750780408871,6.9222,144.4,144.35,59.3]
[1750780409074,7.32103322,144.42,144.35,59.3]
[1750780409466,59.3,144.45,144.32,7.32103322]
[1750780409672,66.62103322,144.45,144.36,7.32103322]
[1750780409870,66.62103322,144.45,144.41,6.9213]
[1750780410077,6.9207,144.43,144.36,7.32103322]
[1750780410373,66.62103322,144.45,144.43,6.9206]
[1750780410573,6.9205,144.44,144.36,7.32103322]
[1750780410963,6.9205,144.44,144.3,22.42152184]
[1750780410964,7.32005283,144.41,144.3,20.15654145]
[1750780411164,6.9222,144.4,144.32,7.32005283]
[1750780411370,6.9222,144.4,144.33,2.294]
[1750780411568,7.32005283,144.41,144.33,2.294]
[1750780411974,7.32005283,144.41,144.37,6.9233]
[1750780412281,6.9214,144.42,144.34,7.32005283]
[1750780412581,7.32005283,144.44,144.39,6.9221]
[1750780412781,7.32005283,144.44,144.34,7.32005283]
[1750780413767,14.24045283,144.44,144.4,6.9218]
[1750780413971,14.24045283,144.44,144.34,7.32005283]
[1750780414176,14.24045283,144.44,144.41,6.9213]
[1750780414372,6.9206,144.43,144.34,7.32005283]
[1750780414875,14.24045283,144.44,144.41,6.9215]
[1750780415078,7.32005283,144.44,144.34,7.32005283]
[1750780415476,6.9214,144.42,144.34,7.32005283]
[1750780415678,14.24145283,144.42,144.33,2.294]
[1750780416277,7.32005283,144.42,144.4,6.9218]
[1750780416470,7.32005283,144.42,144.33,2.294]
[1750780416671,7.32005283,144.4,144.33,2.294]
[1750780417067,7.32005283,144.38,144.31,59.3]
[1750780417281,14.24225283,144.4,144.37,6.9231]
[1750780417475,14.24225283,144.4,144.31,61.6321]
[1750780417675,7.32005283,144.4,144.39,6.9225]
[1750780417879,14.24145283,144.42,144.39,6.9225]
[1750780418081,7.32005283,144.42,144.32,7.32005283]
[1750780418475,6.9221,144.4,144.38,6.9228]
[1750780418778,7.32005283,144.42,144.38,6.9228]
[1750780419383,6.9218,144.41,144.38,6.9228]
[1750780419879,9.63145972,144.44,144.31,61.6321]
[1750780420080,7.32005283,144.4,144.31,68.95215283]
[1750780420274,14.24335283,144.38,144.35,6.9244]
[1750780420669,7.32005283,144.38,144.35,6.9244]
[1750780420870,14.24325283,144.38,144.35,6.9244]
[1750780421172,14.24325283,144.38,144.36,6.9239]
[1750780421579,14.24325283,144.38,144.35,6.9243]
[1750780421879,14.24325283,144.38,144.31,61.6321]
[1750780422786,6.9236,144.37,144.31,61.6321]
[1750780423284,6.9236,144.37,144.35,6.9242]
[1750780423783,14.24325283,144.38,144.35,6.9242]
[1750780424186,7.32005283,144.38,144.31,61.6321]
[1750780424390,14.24335283,144.38,144.31,61.6321]
[1750780424879,7.32651705,144.37,144.31,2.3321]
[1750780425087,7.32651705,144.37,144.29,4.7091]
[1750780425286,6.9248,144.35,144.32,6.9256]
[1750780425482,7.32651705,144.35,144.29,2.3315]
[1750780425881,6.9251,144.34,144.31,6.9261]
[1750780426182,7.32651705,144.33,144.27,2.2905]
[1750780426382,7.32651705,144.31,144.29,6.927]
[1750780426783,7.32651705,144.31,144.24,2.3076]
[1750780427588,7.32651705,144.31,144.28,6.9275]
[1750780427589,14.25311705,144.31,144.28,6.9275]
[1750780427888,14.25311705,144.31,144.24,2.3076]
[1750780428086,7.32651705,144.31,144.24,2.3076]
[1750780428594,6.9272,144.3,144.24,2.3076]
[1750780428886,7.32651705,144.31,144.24,2.3076]
[1750780429286,6.9271,144.3,144.27,6.9282]
[1750780429986,7.32651705,144.31,144.27,6.9282]
[1750780430181,7.32651705,144.31,144.24,2.3076]
[1750780430383,6.9274,144.29,144.23,62.1675]
[1750780430585,7.32651705,144.31,144.27,6.928]
[1750780431589,7.32651705,144.31,144.28,6.9277]
[1750780432192,14.25311705,144.31,144.28,6.9277]
[1750780432595,2.2098,144.32,144.24,7.32651705]